[Event "8th Gibraltar U16-Junior 2018"]
[Site "Caleta"]
[Date "2018.08.18"]
[Round "3"]
[White "Cox, Ben"]
[Black "Rayner, Hugo"]
[Result "1-0"]
[ECO "C30"]
[WhiteElo "1466"]
[BlackElo "1391"]
[Annotator "NA RC"]
[PlyCount "53"]
[EventDate "2018.08.17"]
[EventType "swiss"]
[EventCountry "GGB"]
[SourceTitle "playchess.com"]
[Source "ChessBase"]
[SourceQuality "1"]
[TimeControl "6600+10"]

1. e4 {[%emt 0:00:00]} e5 {[%emt 0:00:00]} 2. f4 {[%emt 0:00:03]} Bc5 {[%emt 0:00:20]} 3. Nf3 {[%emt 0:00:11]} Nf6 {[%emt 0:00:47]} 4. Nc3 {[%emt 0:00:49]} d6 {[%emt 0:01:27]} 5. Bc4 {[%emt 0:01:38]} Nc6 {[%emt 0:01:07]} 6. d3 {[%emt 0:01:09]} O-O {[%emt 0:00:23]} 7. f5 {[%emt 0:01:41]} h6 {[%emt 0:00:46]} 8. h3 {[%emt 0:03:23]} Nd4 {[%emt 0:01:26]} 9. Bd2 {[%emt 0:04:54]} c6 {[%emt 0:00:51]} 10. a3 {[%emt 0:12:13]} d5 {[%emt 0:03:54]} 11. Ba2 {[%emt 0:00:39]} dxe4 {[%emt 0:07:11]} 12. dxe4 {[%emt 0:00:40]} Nxf3+ {[%emt 0:03:45]} 13. Qxf3 {[%emt 0:00:46]} Qd4 {[%emt 0:01:51]} 14. O-O-O {[%emt 0:02:33]} Qf2 {[%emt 0:01:15]} 15. Qxf2 {[%emt 0:01:55]} Bxf2 {[%emt 0:00:08]} 16. g4 {[%emt 0:04:24]} Bh4 {[%emt 0:02:44]} 17. Rdg1 {[%emt 0:03:08]} b6 {[%emt 0:01:12]} 18. g5 {[%emt 0:01:53]} hxg5 {[%emt 0:00:15]} 19. Bxg5 {[%emt 0:01:46]} Bxg5+ {[%emt 0:01:23]} 20. Rxg5 {[%emt 0:00:05]} Ne8 {[%emt 0:01:54]} 21. Rhg1 {[%emt 0:04:46]} Kh7 {[%emt 0:00:48]} 22. Rh5+ {[%emt 0:00:11]} Kg8 {[%emt 0:00:08]} 23. Rh6 {[%emt 0:00:20]} a6 {[%emt 0:01:25]} 24. f6 {[%emt 0:00:20]} Nxf6 {[%emt 0:01:22]} 25. Rxf6 {[%emt 0:00:05]} Bxh3 {[%emt 0:00:08]} 26. Rxc6 {[%emt 0:03:25]} b5 {[%emt 0:00:13]} 27. Rcg6 {[%emt 0:00:00]} 1-0

[Event "8th Gibraltar U16-Junior 2018"]
[Site "Caleta"]
[Date "2018.08.18"]
[Round "3"]
[White "Bansal, Saahil"]
[Black "Patel, Devan"]
[Result "0-1"]
[ECO "D60"]
[WhiteElo "1454"]
[BlackElo "1716"]
[Annotator "NA RC"]
[PlyCount "138"]
[EventDate "2018.08.17"]
[EventType "swiss"]
[EventCountry "GGB"]
[SourceTitle "playchess.com"]
[Source "ChessBase"]
[SourceQuality "1"]
[TimeControl "6600+10"]

1. d4 {[%emt 0:00:00]} d5 {[%emt 0:00:00]} 2. c4 {[%emt 0:00:13]} e6 {[%emt 0:00:01]} 3. Nc3 {[%emt 0:00:10]} Nf6 {[%emt 0:00:05]} 4. Bg5 {[%emt 0:00:27]} Be7 {[%emt 0:00:09]} 5. Nf3 {[%emt 0:00:12]} O-O {[%emt 0:00:06]} 6. e3 {[%emt 0:00:48]} Nbd7 {[%emt 0:00:06]} 7. Bd3 {[%emt 0:02:14]} h6 {[%emt 0:00:05]} 8. Bh4 {[%emt 0:00:25]} a6 {[%emt 0:00:13]} 9. O-O {[%emt 0:02:01]} dxc4 {[%emt 0:00:36]} 10. Bxc4 {[%emt 0:00:33]} b5 {[%emt 0:00:05]} 11. Bd3 {[%emt 0:01:17]} Bb7 {[%emt 0:00:07]} 12. Rc1 {[%emt 0:04:25]} c5 {[%emt 0:01:20]} 13. dxc5 {[%emt 0:05:09]} Nxc5 {[%emt 0:01:55]} 14. Be2 {[%emt 0:00:51]} Qb6 {[%emt 0:02:17]} 15. Qc2 {[%emt 0:04:52]} Rac8 {[%emt 0:03:04]} 16. Qb1 {[%emt 0:02:46]} b4 {[%emt 0:04:28]} 17. Nd1 {[%emt 0:02:34]} Be4 {[%emt 0:01:13]} 18. Qa1 {[%emt 0:00:54]} Nd3 {[%emt 0:32:00]} 19. Rxc8 {[%emt 0:00:18]} Rxc8 {[%emt 0:00:12]} 20. Bxd3 {[%emt 0:10:22]} Bxd3 {[%emt 0:02:10]} 21. Re1 {[%emt 0:00:23]} b3 {[%emt 0:22:01]} 22. Nc3 {[%emt 0:03:02]} Rxc3 {[%emt 0:01:12]} 23. Nd2 {[%emt 0:06:24]} Rc2 {[%emt 0:07:20]} 24. Nxb3 {[%emt 0:00:17]} Bc4 {[%emt 0:01:01]} 25. Bg3 {[%emt 0:11:27]} Bxb3 {[%emt 0:01:07]} 26. axb3 {[%emt 0:00:07]} Ne4 {[%emt 0:00:57]} 27. Qa4 {[%emt 0:01:19]} Nxg3 {[%emt 0:01:14]} 28. hxg3 {[%emt 0:00:12]} Qc6 {[%emt 0:00:42]} 29. Qa1 {[%emt 0:00:16]} Bf6 {[%emt 0:00:19]} 30. Qd1 {[%emt 0:01:24]} Rxb2 {[%emt 0:00:46]} 31. Qd3 {[%emt 0:00:14]} Qc3 {[%emt 0:00:29]} 32. Rd1 {[%emt 0:00:09]} Qxd3 {[%emt 0:00:13]} 33. Rxd3 {[%emt 0:00:08]} g6 {[%emt 0:00:29]} 34. g4 {[%emt 0:00:54]} Kg7 {[%emt 0:00:34]} 35. g3 {[%emt 0:00:12]} Ra2 {[%emt 0:00:20]} 36. Kf1 {[%emt 0:00:17]} a5 {[%emt 0:00:13]} 37. Ke1 {[%emt 0:00:08]} Ra3 {[%emt 0:00:24]} 38. Ke2 {[%emt 0:00:13]} a4 {[%emt 0:00:21]} 39. bxa4 {[%emt 0:00:07]} Rxd3 {[%emt 0:00:20]} 40. Kxd3 {[%emt 0:00:05]} Bd8 {[%emt 0:00:07]} 41. f4 {[%emt 0:00:23]} Kf6 {[%emt 0:00:23]} 42. Ke4 {[%emt 0:00:06]} Bb6 {[%emt 0:00:23]} 43. Kf3 {[%emt 0:00:19]} Ke7 {[%emt 0:00:31]} 44. e4 {[%emt 0:00:23]} Bc7 {[%emt 0:01:02]} 45. e5 {[%emt 0:02:15]} f6 {[%emt 0:00:31]} 46. exf6+ {[%emt 0:00:39]} Kxf6 {[%emt 0:00:07]} 47. Ke4 {[%emt 0:05:05]} g5 {[%emt 0:03:50]} 48. Kf3 {[%emt 0:00:11]} e5 {[%emt 0:04:49]} 49. f5 {[%emt 0:03:22]} Ke7 {[%emt 0:02:36]} 50. Ke4 {[%emt 0:03:05]} Kd6 {[%emt 0:00:11]} 51. Kd3 {[%emt 0:00:46]} Kd5 {[%emt 0:02:29]} 52. Ke3 {[%emt 0:02:38]} Bd8 {[%emt 0:00:06]} 53. Kd3 {[%emt 0:00:32]} e4+ {[%emt 0:00:04]} 54. Ke3 {[%emt 0:01:02]} Ke5 {[%emt 0:00:05]} 55. Ke2 {[%emt 0:01:05]} Kd4 {[%emt 0:00:04]} 56. Kf2 {[%emt 0:00:16]} Kd3 {[%emt 0:00:05]} 57. a5 {[%emt 0:00:36]} Bxa5 {[%emt 0:00:05]} 58. f6 {[%emt 0:00:03]} Bb4 {[%emt 0:00:08]} 59. f7 {[%emt 0:00:03]} Kd2 {[%emt 0:00:04]} 60. f8=Q {[%emt 0:00:17]} Bxf8 {[%emt 0:00:04]} 61. Kf1 {[%emt 0:00:08]} e3 {[%emt 0:00:04]} 62. Kg2 {[%emt 0:00:04]} e2 {[%emt 0:00:07]} 63. Kf3 {[%emt 0:00:14]} e1=Q {[%emt 0:00:16]} 64. Kg2 {[%emt 0:00:01]} Qe2+ {[%emt 0:00:09]} 65. Kh1 {[%emt 0:00:11]} Bg7 {[%emt 0:00:09]} 66. Kg1 {[%emt 0:00:05]} Bd4+ {[%emt 0:00:04]} 67. Kh1 {[%emt 0:00:08]} Qf1+ {[%emt 0:00:08]} 68. Kh2 {[%emt 0:00:05]} Qg1+ {[%emt 0:00:06]} 69. Kh3 {[%emt 0:00:08]} Qh1# {[%emt 0:00:05]} 0-1

[Event "8th Gibraltar U16-Junior 2018"]
[Site "Caleta"]
[Date "2018.08.18"]
[Round "3"]
[White "Chouki, Aali"]
[Black "Cortes Villa, Jaime"]
[Result "1-0"]
[ECO "B23"]
[WhiteElo "1413"]
[BlackElo "1700"]
[Annotator "NA RC"]
[PlyCount "173"]
[EventDate "2018.08.17"]
[EventType "swiss"]
[EventCountry "GGB"]
[SourceTitle "playchess.com"]
[Source "ChessBase"]
[SourceQuality "1"]
[TimeControl "6600+10"]

1. e4 {[%emt 0:00:00]} c5 {[%emt 0:00:00]} 2. Nc3 {[%emt 0:00:00]} g6 {[%emt 0:00:02]} 3. f4 {[%emt 0:00:05]} Bg7 {[%emt 0:00:14]} 4. Nf3 {[%emt 0:00:17]} d6 {[%emt 0:00:18]} 5. Bc4 {[%emt 0:00:18]} Nc6 {[%emt 0:00:55]} 6. d3 {[%emt 0:01:05]} e6 {[%emt 0:00:20]} 7. O-O {[%emt 0:00:36]} Nge7 {[%emt 0:00:08]} 8. Bb3 {[%emt 0:01:20]} O-O {[%emt 0:02:59]} 9. Qe1 {[%emt 0:00:43]} Nd4 {[%emt 0:00:17]} 10. Nxd4 {[%emt 0:01:50]} cxd4 {[%emt 0:00:16]} 11. Ne2 {[%emt 0:00:54]} Kh8 {[%emt 0:06:11]} 12. Ng3 {[%emt 0:09:17]} Qc7 {[%emt 0:05:00]} 13. f5 {[%emt 0:05:00]} exf5 {[%emt 0:10:30]} 14. exf5 {[%emt 0:00:49]} Nxf5 {[%emt 0:01:02]} 15. Nxf5 {[%emt 0:02:47]} Bxf5 {[%emt 0:00:41]} 16. Bf4 {[%emt 0:05:57]} Be5 {[%emt 0:20:16]} 17. Qd2 {[%emt 0:05:07]} Rfe8 {[%emt 0:07:10]} 18. Rae1 {[%emt 0:10:57]} Re7 {[%emt 0:08:45]} 19. h3 {[%emt 0:10:03]} Rae8 {[%emt 0:08:58]} 20. Bh6 {[%emt 0:13:51]} Qd7 {[%emt 0:19:08]} 21. Qf2 {[%emt 0:08:16]} Bg7 {[%emt 0:08:52]} 22. Bxg7+ {[%emt 0:01:19]} Kxg7 {[%emt 0:00:04]} 23. Qxd4+ {[%emt 0:00:28]} Kg8 {[%emt 0:00:07]} 24. Rxe7 {[%emt 0:01:10]} Qxe7 {[%emt 0:00:23]} 25. Qxa7 {[%emt 0:02:00]} Qe3+ {[%emt 0:00:49]} 26. Qxe3 {[%emt 0:00:15]} Rxe3 {[%emt 0:00:04]} 27. Kf2 {[%emt 0:01:21]} Re7 {[%emt 0:00:55]} 28. Re1 {[%emt 0:01:25]} Rc7 {[%emt 0:00:49]} 29. Re8+ {[%emt 0:01:38]} Kg7 {[%emt 0:00:10]} 30. Rd8 {[%emt 0:00:19]} Bd7 {[%emt 0:00:24]} 31. c3 {[%emt 0:03:16]} Kf6 {[%emt 0:01:35]} 32. Rf8 {[%emt 0:01:51]} Bf5 {[%emt 0:00:46]} 33. d4 {[%emt 0:01:03]} h5 {[%emt 0:00:11]} 34. Re8 {[%emt 0:02:13]} Be6 {[%emt 0:00:48]} 35. d5 {[%emt 0:03:56]} Bf5 {[%emt 0:00:34]} 36. h4 {[%emt 0:01:41]} Bg4 {[%emt 0:00:48]} 37. Re4 {[%emt 0:01:47]} Kg7 {[%emt 0:00:24]} 38. g3 {[%emt 0:01:41]} f6 {[%emt 0:00:07]} 39. Ke3 {[%emt 0:00:37]} g5 {[%emt 0:00:17]} 40. Kd4 {[%emt 0:00:56]} f5 {[%emt 0:00:41]} 41. Re1 {[%emt 0:00:25]} gxh4 {[%emt 0:00:06]} 42. gxh4 {[%emt 0:00:10]} f4 43. Rf1 {[%emt 0:00:18]} f3 {[%emt 0:00:24]} 44. Bd1 {[%emt 0:00:34]} Rf7 {[%emt 0:01:06]} 45. Ke3 {[%emt 0:00:57]} Rf5 {[%emt 0:00:31]} 46. c4 {[%emt 0:00:23]} Re5+ {[%emt 0:00:43]} 47. Kf4 {[%emt 0:00:24]} Bh3 {[%emt 0:00:47]} 48. Rxf3 {[%emt 0:01:02]} Bg4 {[%emt 0:00:05]} 49. Rg3 {[%emt 0:00:15]} Rf5+ {[%emt 0:00:09]} 50. Ke4 {[%emt 0:00:15]} Re5+ {[%emt 0:00:02]} 51. Kd3 {[%emt 0:00:17]} b5 {[%emt 0:00:34]} 52. b3 {[%emt 0:00:18]} bxc4+ {[%emt 0:00:15]} 53. bxc4 {[%emt 0:00:05]} Re1 {[%emt 0:00:06]} 54. Bxg4 hxg4 {[%emt 0:00:00]} 55. Rxg4+ {[%emt 0:00:32]} Kf6 {[%emt 0:00:01]} 56. Re4 {[%emt 0:00:22]} Rd1+ {[%emt 0:00:21]} 57. Kc2 {[%emt 0:00:09]} Ra1 {[%emt 0:00:19]} 58. Kb3 {[%emt 0:00:09]} Rb1+ {[%emt 0:00:04]} 59. Kc2 {[%emt 0:00:13]} Ra1 {[%emt 0:00:02]} 60. Kb2 {[%emt 0:00:04]} Rh1 {[%emt 0:00:02]} 61. a4 {[%emt 0:00:06]} Rh2+ {[%emt 0:00:12]} 62. Kb3 {[%emt 0:00:10]} Kf5 {[%emt 0:00:01]} 63. Re6 {[%emt 0:00:38]} Rxh4 {[%emt 0:00:04]} 64. Rxd6 {[%emt 0:00:08]} Ke5 {[%emt 0:00:01]} 65. c5 {[%emt 0:00:21]} Rh8 {[%emt 0:00:12]} 66. Kc4 {[%emt 0:00:28]} Ra8 {[%emt 0:00:11]} 67. Re6+ {[%emt 0:00:05]} Kf5 {[%emt 0:00:05]} 68. Kb5 {[%emt 0:00:07]} Rb8+ {[%emt 0:00:04]} 69. Rb6 {[%emt 0:00:11]} Rd8 {[%emt 0:00:04]} 70. d6 {[%emt 0:00:20]} Ke6 {[%emt 0:00:04]} 71. Rb7 {[%emt 0:00:12]} Rc8 {[%emt 0:00:14]} 72. d7 {[%emt 0:00:27]} Ra8 {[%emt 0:00:18]} 73. Kc6 {[%emt 0:00:26]} Ke7 {[%emt 0:00:17]} 74. Kc7 {[%emt 0:00:16]} Rd8 {[%emt 0:00:13]} 75. Rb8 {[%emt 0:00:18]} Rxd7+ {[%emt 0:00:04]} 76. Kb6 {[%emt 0:00:17]} Rd1 {[%emt 0:00:03]} 77. a5 {[%emt 0:00:28]} Ra1 {[%emt 0:00:15]} 78. a6 {[%emt 0:00:25]} Kd7 {[%emt 0:00:02]} 79. c6+ {[%emt 0:00:05]} Kd6 {[%emt 0:00:03]} 80. Rd8+ {[%emt 0:00:08]} Ke7 {[%emt 0:00:05]} 81. Rd7+ {[%emt 0:00:02]} Ke8 {[%emt 0:00:01]} 82. a7 {[%emt 0:00:21]} Rb1+ {[%emt 0:00:01]} 83. Ka6 {[%emt 0:00:06]} Ra1+ {[%emt 0:00:03]} 84. Kb7 {[%emt 0:00:02]} Rb1+ {[%emt 0:00:01]} 85. Kc8 {[%emt 0:00:03]} Ra1 {[%emt 0:00:02]} 86. Kb8 {[%emt 0:00:01]} Rb1+ {[%emt 0:00:02]} 87. Rb7 {[%emt 0:00:01]} 1-0

[Event "8th Gibraltar U16-Junior 2018"]
[Site "Caleta"]
[Date "2018.08.18"]
[Round "3"]
[White "Seleznev, Egor"]
[Black "Dharmasena, Gavith"]
[Result "0-1"]
[ECO "D02"]
[WhiteElo "1388"]
[BlackElo "1433"]
[Annotator "NA RC"]
[PlyCount "64"]
[EventDate "2018.08.17"]
[EventType "swiss"]
[EventCountry "GGB"]
[SourceTitle "playchess.com"]
[Source "ChessBase"]
[SourceQuality "1"]
[TimeControl "6600+10"]

1. d4 {[%emt 0:00:00]} d5 {[%emt 0:00:00]} 2. Bf4 {[%emt 0:00:13]} Nf6 {[%emt 0:00:02]} 3. Nf3 {[%emt 0:00:31]} c5 {[%emt 0:00:25]} 4. e3 {[%emt 0:00:41]} a6 {[%emt 0:01:13]} 5. c3 {[%emt 0:00:52]} Qb6 {[%emt 0:00:45]} 6. Qc2 {[%emt 0:01:39]} Nc6 {[%emt 0:00:56]} 7. Nbd2 {[%emt 0:00:37]} Bg4 {[%emt 0:01:08]} 8. Be2 {[%emt 0:01:14]} e6 {[%emt 0:00:22]} 9. O-O {[%emt 0:02:09]} Be7 {[%emt 0:00:57]} 10. h3 {[%emt 0:01:33]} Bh5 {[%emt 0:00:55]} 11. Rfe1 {[%emt 0:00:52]} Rc8 {[%emt 0:01:34]} 12. Nb3 {[%emt 0:02:58]} Bg6 {[%emt 0:00:37]} 13. Qc1 {[%emt 0:01:47]} c4 {[%emt 0:02:29]} 14. Nbd2 {[%emt 0:00:21]} h6 {[%emt 0:05:48]} 15. Bd1 {[%emt 0:02:25]} O-O {[%emt 0:01:31]} 16. Bc2 {[%emt 0:00:42]} Bd3 {[%emt 0:05:29]} 17. Bxd3 {[%emt 0:04:18]} cxd3 {[%emt 0:00:06]} 18. e4 {[%emt 0:01:10]} dxe4 {[%emt 0:01:12]} 19. Nxe4 {[%emt 0:00:26]} Nb4 {[%emt 0:00:22]} 20. Nxf6+ {[%emt 0:05:31]} Bxf6 {[%emt 0:00:19]} 21. Rb1 {[%emt 0:03:57]} Nc2 {[%emt 0:01:04]} 22. Ne5 {[%emt 0:06:53]} Bxe5 {[%emt 0:01:23]} 23. Rxe5 {[%emt 0:01:15]} Nxd4 {[%emt 0:00:07]} 24. Qd2 {[%emt 0:04:16]} Ne2+ {[%emt 0:00:55]} 25. Kf1 {[%emt 0:00:49]} Nxf4 {[%emt 0:02:36]} 26. Qxf4 {[%emt 0:00:22]} Rxc3 {[%emt 0:00:07]} 27. Re3 {[%emt 0:05:13]} Rfc8 {[%emt 0:02:31]} 28. Rg3 {[%emt 0:01:37]} Qxb2 {[%emt 0:00:23]} 29. Re1 {[%emt 0:04:20]} d2 {[%emt 0:01:48]} 30. Rd1 {[%emt 0:05:10]} Rc1 {[%emt 0:00:58]} 31. Rxg7+ {[%emt 0:05:08]} Kxg7 {[%emt 0:01:24]} 32. Qg4+ {[%emt 0:00:00]} Kh8 {[%emt 0:00:17]} 0-1

[Event "8th Gibraltar U16-Junior 2018"]
[Site "Caleta"]
[Date "2018.08.18"]
[Round "3"]
[White "Gough, Theo"]
[Black "Manocha, Shobhin"]
[Result "1-0"]
[ECO "D12"]
[WhiteElo "1346"]
[BlackElo "1461"]
[Annotator "NA RC"]
[PlyCount "63"]
[EventDate "2018.08.17"]
[EventType "swiss"]
[EventCountry "GGB"]
[SourceTitle "playchess.com"]
[Source "ChessBase"]
[SourceQuality "1"]
[TimeControl "6600+10"]

1. d4 {[%emt 0:00:00]} d5 {[%emt 0:00:00]} 2. c4 {[%emt 0:00:00]} c6 {[%emt 0:00:00]} 3. Nf3 {[%emt 0:00:04]} Nf6 {[%emt 0:00:00]} 4. e3 {[%emt 0:00:14]} Bf5 {[%emt 0:00:03]} 5. b3 {[%emt 0:00:31]} e6 {[%emt 0:00:18]} 6. Bd3 {[%emt 0:01:01]} Bg6 {[%emt 0:00:34]} 7. O-O {[%emt 0:00:48]} Nbd7 {[%emt 0:00:18]} 8. Bb2 {[%emt 0:00:09]} Bd6 {[%emt 0:00:45]} 9. Ne5 {[%emt 0:01:16]} Bh5 {[%emt 0:06:06]} 10. Be2 {[%emt 0:03:20]} Bg6 {[%emt 0:01:13]} 11. Nd2 {[%emt 0:01:05]} Qe7 {[%emt 0:00:52]} 12. f4 {[%emt 0:01:31]} Bxe5 {[%emt 0:01:01]} 13. fxe5 {[%emt 0:01:09]} Ne4 {[%emt 0:00:30]} 14. Nxe4 {[%emt 0:02:15]} Bxe4 {[%emt 0:00:21]} 15. Bd3 {[%emt 0:07:28]} Qg5 {[%emt 0:01:31]} 16. Qe2 {[%emt 0:01:52]} Bg6 {[%emt 0:01:41]} 17. Rf4 {[%emt 0:06:42]} Bh5 {[%emt 0:07:20]} 18. Qf2 {[%emt 0:06:54]} O-O-O {[%emt 0:02:27]} 19. cxd5 {[%emt 0:04:45]} exd5 {[%emt 0:01:15]} 20. Ba3 {[%emt 0:02:56]} c5 {[%emt 0:18:15]} 21. Rc1 {[%emt 0:02:35]} b6 {[%emt 0:04:08]} 22. Bf5 {[%emt 0:01:18]} Qe7 {[%emt 0:13:15]} 23. dxc5 {[%emt 0:04:47]} Kb8 {[%emt 0:01:59]} 24. Bxd7 {[%emt 0:07:06]} Rxd7 {[%emt 0:01:23]} 25. Qb2 {[%emt 0:03:07]} Rc7 {[%emt 0:13:17]} 26. c6 {[%emt 0:01:34]} Qg5 {[%emt 0:01:19]} 27. Bd6 {[%emt 0:00:18]} Re8 {[%emt 0:00:32]} 28. Qa3 {[%emt 0:02:28]} Rec8 {[%emt 0:04:00]} 29. Bxc7+ {[%emt 0:02:14]} Rxc7 {[%emt 0:00:22]} 30. Qf8+ {[%emt 0:00:07]} Rc8 {[%emt 0:00:20]} 31. c7+ {[%emt 0:00:20]} Kb7 {[%emt 0:01:18]} 32. Qd6 {[%emt 0:00:17]} 1-0

[Event "8th Gibraltar U16-Junior 2018"]
[Site "Caleta"]
[Date "2018.08.18"]
[Round "3"]
[White "Dhanwani, Aryan"]
[Black "Le Barbier, Vincent"]
[Result "1/2-1/2"]
[ECO "C50"]
[WhiteElo "1169"]
[BlackElo "1457"]
[Annotator "NA RC"]
[PlyCount "124"]
[EventDate "2018.08.17"]
[EventType "swiss"]
[EventCountry "GGB"]
[SourceTitle "playchess.com"]
[Source "ChessBase"]
[SourceQuality "1"]
[TimeControl "6600+10"]

1. e4 {[%emt 0:00:13]} e5 {[%emt 0:00:00]} 2. Nf3 {[%emt 0:00:15]} Nc6 {[%emt 0:00:00]} 3. Bc4 {[%emt 0:00:27]} Bc5 {[%emt 0:00:05]} 4. d3 {[%emt 0:00:31]} d6 {[%emt 0:00:04]} 5. Ng5 {[%emt 0:02:07]} Nh6 {[%emt 0:00:59]} 6. Nc3 {[%emt 0:01:08]} Bd4 {[%emt 0:01:05]} 7. Nf3 {[%emt 0:01:39]} Bg4 {[%emt 0:00:20]} 8. h3 {[%emt 0:00:26]} Bh5 {[%emt 0:00:19]} 9. g4 {[%emt 0:00:16]} Bg6 {[%emt 0:00:10]} 10. g5 {[%emt 0:03:01]} Ng8 {[%emt 0:00:12]} 11. Nxd4 {[%emt 0:00:30]} Nxd4 {[%emt 0:00:01]} 12. Nb5 {[%emt 0:01:56]} Nxb5 {[%emt 0:00:36]} 13. Bxb5+ {[%emt 0:00:04]} c6 {[%emt 0:00:10]} 14. Bc4 {[%emt 0:01:44]} f6 {[%emt 0:00:06]} 15. Qg4 {[%emt 0:06:28]} d5 {[%emt 0:00:32]} 16. exd5 {[%emt 0:01:37]} cxd5 {[%emt 0:00:01]} 17. Qe6+ {[%emt 0:01:16]} Ne7 {[%emt 0:00:31]} 18. Bb5+ {[%emt 0:00:56]} Kf8 {[%emt 0:00:06]} 19. gxf6 {[%emt 0:00:30]} Nf5 {[%emt 0:03:36]} 20. fxg7+ {[%emt 0:01:20]} Nxg7 {[%emt 0:00:08]} 21. Qd7 {[%emt 0:02:01]} Qxd7 {[%emt 0:02:02]} 22. Bxd7 {[%emt 0:00:19]} Ke7 {[%emt 0:00:37]} 23. Bg4 {[%emt 0:02:43]} h5 {[%emt 0:00:21]} 24. Bf3 {[%emt 0:01:27]} Nf5 {[%emt 0:00:36]} 25. Bxd5 {[%emt 0:00:37]} Nd4 {[%emt 0:00:27]} 26. Kd2 {[%emt 0:02:45]} Kd6 {[%emt 0:00:30]} 27. Bxb7 {[%emt 0:01:30]} Raf8 {[%emt 0:00:22]} 28. Rf1 {[%emt 0:02:22]} Rf7 {[%emt 0:00:02]} 29. c3 {[%emt 0:01:40]} Nf3+ {[%emt 0:00:53]} 30. Ke2 {[%emt 0:06:14]} Rxb7 {[%emt 0:00:06]} 31. Kxf3 {[%emt 0:00:29]} Bxd3 {[%emt 0:00:08]} 32. Rd1 {[%emt 0:00:51]} e4+ {[%emt 0:00:02]} 33. Kg2 {[%emt 0:13:57]} Rg7+ {[%emt 0:00:03]} 34. Kh1 {[%emt 0:03:10]} Rhg8 {[%emt 0:00:02]} 35. Bf4+ {[%emt 0:00:54]} Ke6 {[%emt 0:00:01]} 36. Rg1 {[%emt 0:00:43]} Be2 {[%emt 0:00:26]} 37. Rxg7 {[%emt 0:01:15]} Rxg7 {[%emt 0:00:01]} 38. Rg1 {[%emt 0:00:33]} Rf7 {[%emt 0:01:06]} 39. Be3 {[%emt 0:01:49]} a5 {[%emt 0:01:25]} 40. Rg6+ {[%emt 0:01:08]} Ke7 {[%emt 0:05:48]} 41. h4 {[%emt 0:09:46]} Kd8 {[%emt 0:00:00]} 42. Kh2 {[%emt 0:03:48]} Rd7 {[%emt 0:00:00]} 43. Bd4 {[%emt 0:02:34]} Kc8 {[%emt 0:00:00]} 44. Rg5 {[%emt 0:01:49]} a4 {[%emt 0:00:00]} 45. Ra5 {[%emt 0:01:40]} Bd1 {[%emt 0:00:00]} 46. Ra8+ {[%emt 0:00:43]} Kb7 {[%emt 0:00:00]} 47. Ra7+ {[%emt 0:00:10]} Kc6 {[%emt 0:00:00]} 48. Rxd7 {[%emt 0:00:07]} Kxd7 {[%emt 0:00:00]} 49. Kg3 {[%emt 0:00:39]} Kc6 {[%emt 0:00:00]} 50. Kf4 {[%emt 0:00:25]} Kd5 {[%emt 0:00:00]} 51. c4+ {[%emt 0:01:21]} Kxd4 {[%emt 0:00:00]} 52. b3 {[%emt 0:00:42]} axb3 {[%emt 0:00:01]} 53. axb3 {[%emt 0:00:01]} Bxb3 {[%emt 0:00:02]} 54. c5 {[%emt 0:00:34]} Kxc5 {[%emt 0:00:06]} 55. Kxe4 {[%emt 0:00:47]} Kd6 {[%emt 0:00:01]} 56. Kf5 {[%emt 0:00:36]} Kd5 {[%emt 0:00:28]} 57. f4 {[%emt 0:01:06]} Bd1 {[%emt 0:00:19]} 58. Kg6 {[%emt 0:00:50]} Ke4 {[%emt 0:01:05]} 59. f5 {[%emt 0:00:48]} Kf4 {[%emt 0:00:09]} 60. f6 {[%emt 0:01:03]} Bb3 {[%emt 0:00:08]} 61. Kxh5 {[%emt 0:00:19]} Kf5 {[%emt 0:00:15]} 62. Kh6 {[%emt 0:02:27]} Kxf6 {[%emt 0:00:02]} 1/2-1/2

[Event "8th Gibraltar U16-Junior 2018"]
[Site "Caleta"]
[Date "2018.08.18"]
[Round "3"]
[White "Harbinson, Alec Ryan"]
[Black "Vyas, Param"]
[Result "1/2-1/2"]
[ECO "B48"]
[WhiteElo "1043"]
[BlackElo "1372"]
[Annotator "NA RC"]
[PlyCount "55"]
[EventDate "2018.08.17"]
[EventType "swiss"]
[EventCountry "GGB"]
[SourceTitle "playchess.com"]
[Source "ChessBase"]
[SourceQuality "1"]
[TimeControl "6600+10"]

1. e4 {[%emt 0:00:00]} c5 {[%emt 0:00:00]} 2. Nf3 {[%emt 0:00:00]} e6 {[%emt 0:00:03]} 3. Nc3 {[%emt 0:00:13]} a6 {[%emt 0:00:11]} 4. d4 {[%emt 0:00:19]} cxd4 {[%emt 0:00:05]} 5. Nxd4 {[%emt 0:00:14]} Qc7 {[%emt 0:00:24]} 6. Bd3 {[%emt 0:01:20]} Nc6 {[%emt 0:00:22]} 7. Be3 {[%emt 0:01:16]} Nf6 {[%emt 0:00:31]} 8. Nxc6 {[%emt 0:01:27]} bxc6 {[%emt 0:00:21]} 9. Bg5 {[%emt 0:00:48]} Be7 {[%emt 0:00:18]} 10. Qe2 {[%emt 0:00:55]} h6 {[%emt 0:03:16]} 11. Bh4 {[%emt 0:00:56]} d6 {[%emt 0:07:11]} 12. O-O {[%emt 0:01:42]} O-O {[%emt 0:05:48]} 13. Rfe1 {[%emt 0:01:18]} Bb7 {[%emt 0:05:33]} 14. e5 {[%emt 0:03:33]} Nd5 {[%emt 0:00:15]} 15. Nxd5 cxd5 {[%emt 0:00:36]} 16. Bxe7 {[%emt 0:01:42]} Qxe7 {[%emt 0:00:12]} 17. exd6 Qxd6 {[%emt 0:00:05]} 18. Rad1 {[%emt 0:01:54]} Rfd8 {[%emt 0:32:08]} 19. c4 {[%emt 0:01:39]} Qe7 {[%emt 0:00:43]} 20. cxd5 {[%emt 0:01:17]} Bxd5 {[%emt 0:01:23]} 21. Be4 {[%emt 0:01:24]} Bxe4 {[%emt 0:00:42]} 22. Qxe4 {[%emt 0:00:35]} Rac8 {[%emt 0:02:51]} 23. h3 {[%emt 0:02:32]} Rd7 {[%emt 0:06:49]} 24. Qa4 {[%emt 0:02:16]} Rd6 {[%emt 0:04:45]} 25. Rxd6 {[%emt 0:02:07]} Qxd6 {[%emt 0:00:36]} 26. Rd1 {[%emt 0:00:22]} Qb6 {[%emt 0:01:42]} 27. Rb1 {[%emt 0:02:53]} Rd8 {[%emt 0:00:44]} 28. a3 {[%emt 0:01:00]} 1/2-1/2